bitfinex-derivatives/quotes_BNBF0:USTF0_20250413
["timestamp","ask_amount","ask_price","bid_price","bid_amount"]
[1744527434814,0.30982692,593.69,593.02,3.5]
[1744527435112,0.30982692,593.68,593.02,3.5]
[1744527435313,0.33687047,593.7,593.02,3.5]
[1744527435513,0.30982782,593.69,593.02,3.5]
[1744527446921,0.33687047,593.7,593.02,3.5]
[1744527447122,0.30982929,593.69,593.02,3.5]
[1744527451831,0.33687047,593.7,593.02,3.5]
[1744527452024,0.30982467,593.69,593.02,3.5]
[1744527455230,0.30982599,593.68,593.02,3.5]
[1744527455428,0.30982599,593.67,593.02,3.5]
[1744527455633,0.30982599,593.69,593.02,3.5]
[1744527455834,0.30982599,593.66,593.02,3.5]
[1744527456032,0.30982599,593.65,593.02,3.5]
[1744527456233,0.30982599,593.69,593.02,3.5]
[1744527456730,0.33687047,593.7,593.02,3.5]
[1744527456934,0.30982652,593.69,593.02,3.5]
[1744527459136,0.33687047,593.7,593.02,3.5]
[1744527464648,0.30981924,593.69,593.02,3.5]
[1744527464946,0.33687047,593.7,593.02,3.5]
[1744527465150,0.30981945,593.69,593.02,3.5]
[1744527471451,0.33687047,593.7,593.02,3.5]
[1744527471652,0.30983269,593.69,593.02,3.5]
[1744527476357,0.33687047,593.7,593.02,3.5]
[1744527476556,0.30983289,593.69,593.02,3.5]
[1744527477953,0.33687047,593.7,593.02,3.5]
[1744527478153,0.30982085,593.69,593.02,3.5]
[1744527482363,0.33687047,593.7,593.02,3.5]
[1744527482559,0.30982735,593.69,593.02,3.5]
[1744527488864,0.33687047,593.7,593.02,3.5]
[1744527489864,0.30983425,593.69,593.02,3.5]
[1744527493868,0.33687047,593.7,593.02,3.5]
[1744527494063,0.30987635,593.69,593.02,3.5]
[1744527494666,0.33687047,593.7,593.02,3.5]
[1744527494966,0.29338493,593.68,593.02,3.5]
[1744527495160,0.30988123,593.67,593.02,3.5]
[1744527495564,0.29338493,593.68,593.02,3.5]
[1744527495765,0.30987986,593.67,593.02,3.5]
[1744527497068,0.30987986,593.69,593.02,3.5]
[1744527497262,0.33687047,593.7,593.02,3.5]
[1744527497465,0.30986777,593.69,593.02,3.5]
[1744527497968,0.29338493,593.68,593.02,3.5]
[1744527498170,0.30986777,593.67,593.02,3.5]
[1744527499866,0.30986777,593.69,593.02,3.5]
[1744527500971,0.29337009,593.68,593.02,3.5]
[1744527501172,0.30986777,593.67,593.02,3.5]
[1744527502895,0.30986777,593.69,593.02,3.5]
[1744527510280,0.63023561,593.7,593.02,3.5]
[1744527510480,0.30985589,593.69,593.02,3.5]
[1744527511986,0.63023561,593.7,593.02,3.5]
[1744527512180,0.30985519,593.69,593.02,3.5]
[1744527513587,0.63023561,593.7,593.02,3.5]
[1744527513788,0.30985499,593.69,593.02,3.5]
[1744527516891,0.63023561,593.7,593.02,3.5]
[1744527517089,0.30985505,593.69,593.02,3.5]
[1744527520198,0.63023561,593.7,593.02,3.5]
[1744527520397,0.30987858,593.69,593.02,3.5]
[1744527521999,0.29338493,593.68,593.02,3.5]
[1744527522197,0.30987858,593.67,593.02,3.5]
[1744527523399,0.29338493,593.68,593.02,3.5]
[1744527523595,0.30987648,593.67,593.02,3.5]
[1744527523997,0.30987648,593.66,593.02,3.5]
[1744527526799,0.30989231,593.65,593.02,3.5]
[1744527527004,0.29339111,593.65,593.02,3.5]
[1744527527204,0.30989231,593.64,593.02,3.5]
[1744527529902,0.29339359,593.63,593.02,3.5]
[1744527530205,0.30990342,593.62,593.02,3.5]
[1744527533006,0.30990342,593.69,593.02,3.5]
[1744527533308,0.33687047,593.7,593.02,3.5]
[1744527533502,0.30991604,593.69,593.02,3.5]
[1744527534004,0.2933874,593.68,593.02,3.5]
[1744527534208,0.30991604,593.67,593.02,3.5]
[1744527535909,0.30991604,593.69,593.02,3.5]
[1744527536102,0.60330592,593.66,593.02,3.5]
[1744527536304,0.30991604,593.65,593.02,3.5]
[1744527536610,0.29338988,593.66,593.02,3.5]
[1744527536804,0.30991642,593.65,593.02,3.5]
[1744527538913,0.29340719,593.64,593.02,3.5]
[1744527539212,0.30991642,593.63,593.02,3.5]
[1744527541809,0.30991642,593.69,593.02,3.5]
[1744527542015,0.29340966,593.62,593.02,3.5]
[1744527542315,0.30991642,593.61,593.02,3.5]
[1744527542610,0.30991642,593.6,593.02,3.5]
[1744527542809,0.33687614,593.69,593.02,3.5]
[1744527543016,0.29340348,593.59,593.02,3.5]
[1744527543312,0.30992485,593.58,593.02,3.5]
[1744527543516,0.29340472,593.58,593.02,3.5]
[1744527543711,0.30992485,593.57,593.02,3.5]
[1744527544917,0.30992485,593.68,593.02,3.5]
[1744527545116,0.29341709,593.56,593.02,3.5]
[1744527545317,0.33687614,593.69,593.02,3.5]
[1744527545318,0.30992485,593.55,593.02,3.5]
[1744527545515,0.30992485,593.68,593.02,3.5]
[1744527545710,0.30992485,593.67,593.02,3.5]
[1744527545915,0.30992485,593.68,593.02,3.5]
[1744527546112,0.29340348,593.67,593.02,3.5]
[1744527546513,0.30991865,593.66,593.02,3.5]
[1744527547940,0.30991865,593.68,593.02,3.5]
[1744527548114,0.33688749,593.67,593.02,3.5]
[1744527548313,0.30991865,593.66,593.02,3.5]
[1744527548517,0.33689884,593.65,593.02,3.5]
[1744527548717,0.30991865,593.64,593.02,3.5]
[1744527548919,0.33691019,593.63,593.02,3.5]
[1744527549117,0.30991865,593.62,593.02,3.5]
[1744527550220,0.64683452,593.62,593.02,3.5]
[1744527550424,0.64684019,593.61,593.02,3.5]
[1744527550616,0.30991865,593.6,593.02,3.5]
[1744527551923,0.29343317,593.59,593.02,3.5]
[1744527552129,0.30991865,593.58,593.02,3.5]
[1744527554425,0.29343317,593.59,593.02,3.5]
[1744527554723,0.30997564,593.58,593.02,3.5]
[1744527558426,0.64691421,593.58,593.02,3.5]
[1744527558621,0.30997564,593.57,593.02,3.5]
[1744527559526,0.33693857,593.58,593.02,3.5]
[1744527559727,0.30998469,593.57,593.02,3.5]
[1744527560127,0.2934443,593.56,593.02,3.5]
[1744527560328,0.30998469,593.55,593.02,3.5]
[1744527564530,0.2934443,593.56,593.02,3.5]
[1744527564731,0.30998648,593.55,593.02,3.5]
[1744527565933,0.30998648,593.57,593.02,3.5]
[1744527566231,0.29344678,593.54,593.02,3.5]
[1744527566434,0.30998586,593.53,593.02,3.5]
[1744527569032,0.30998586,593.52,593.02,3.5]
[1744527569230,0.29344925,593.52,593.02,3.5]
[1744527569429,0.30998586,593.51,593.02,3.5]
[1744527569628,0.30999662,593.5,593.02,3.5]
[1744527569832,0.30999662,593.51,593.02,3.5]
[1744527570234,0.29344925,593.52,593.02,3.5]
[1744527570434,0.30999658,593.51,593.02,3.5]
[1744527572033,0.30999658,593.57,593.02,3.5]
[1744527572236,0.29345668,593.5,593.02,3.5]
[1744527572430,0.30999658,593.49,593.02,3.5]
[1744527572630,0.30999658,593.55,593.02,3.5]
[1744527573137,0.29345173,593.54,593.02,3.5]
[1744527573438,0.30999658,593.53,593.02,3.5]
[1744527574342,0.29345173,593.54,593.02,3.5]
[1744527574540,0.30998117,593.53,593.02,3.5]
[1744527574940,0.30998117,593.52,593.02,3.5]
[1744527575140,0.30998117,593.55,593.02,3.5]
[1744527576143,0.60343376,593.54,593.02,3.5]
[1744527576442,0.30998203,593.53,593.02,3.5]
[1744527578143,0.2934542,593.52,593.02,3.5]
[1744527578542,0.30998203,593.51,593.02,3.5]
[1744527581052,0.30998363,593.5,593.02,3.5]
[1744527581252,0.30998363,593.55,593.02,3.5]
[1744527581449,0.30998363,593.54,593.02,3.5]
[1744527581652,0.30998363,593.53,593.02,3.5]
[1744527581947,0.30998363,593.52,593.02,3.5]
[1744527582147,0.30998363,593.51,593.02,3.5]
[1744527582752,0.30998447,593.5,593.02,3.5]
[1744527582953,0.30998447,593.49,593.02,3.5]
[1744527583148,0.30998447,593.51,593.02,3.5]
[1744527583347,0.30998447,593.5,593.02,3.5]
[1744527583652,0.30998447,593.49,593.02,3.5]
[1744527583851,0.30998447,593.48,593.02,3.5]
[1744527584053,0.29345668,593.49,593.02,3.5]
[1744527584253,0.30998447,593.48,593.02,3.5]
[1744527586954,0.30998447,593.47,593.02,3.5]
[1744527587254,0.30998447,593.46,593.02,3.5]
[1744527589959,0.30998447,593.55,593.02,3.5]
[1744527590155,0.29345173,593.45,593.02,3.5]
[1744527590360,0.30998447,593.44,593.02,3.5]
[1744527590557,0.30998447,593.55,593.02,3.5]
[1744527590756,0.30998447,593.54,593.02,3.5]
[1744527591061,0.30998447,593.53,593.02,3.5]
[1744527591262,0.30998447,593.55,593.02,3.5]
[1744527591456,0.30998447,593.54,593.02,3.5]
[1744527591662,0.29345173,593.54,593.02,3.5]
[1744527591858,0.30998447,593.53,593.02,3.5]
[1744527592964,0.30998447,593.55,593.02,3.5]
[1744527593165,0.2934542,593.52,593.02,3.5]
[1744527593359,0.30998447,593.51,593.02,3.5]
[1744527595769,0.33694992,593.56,593.02,3.5]
[1744527595962,0.30998087,593.55,593.02,3.5]
[1744527597067,0.29343688,593.54,593.02,3.5]
[1744527597270,0.30998087,593.53,593.02,3.5]
[1744527598270,0.29343688,593.54,593.02,3.5]
[1744527598572,0.63039816,593.54,593.02,3.5]
[1744527598770,0.33696696,593.53,593.02,3.5]
[1744527600168,0.29345668,593.52,593.02,3.5]
[1744527600365,0.63042931,593.52,593.02,3.5]
[1744527601667,0.33697263,593.52,593.02,3.5]
[1744527601972,0.29346657,593.51,593.02,3.5]
[1744527604873,0.33697263,593.52,593.02,3.5]
[1744527605975,0.29336762,593.51,593.02,3.5]
[1744527607677,0.33697263,593.52,593.02,3.5]
[1744527607978,0.29346657,593.5,593.02,3.5]
[1744527608277,0.30999639,593.49,593.02,3.5]
[1744527611776,0.29346657,593.5,593.02,3.5]
[1744527611971,0.30996171,593.49,593.02,3.5]
[1744527614078,0.30996171,593.51,593.02,3.5]
[1744527614279,0.30996171,593.5,593.02,3.5]
[1744527614474,0.30996171,593.51,593.02,3.5]
[1744527614686,0.30996171,593.5,593.02,3.5]
[1744527614876,0.30996171,593.51,593.02,3.5]
[1744527615073,0.29344183,593.51,593.02,3.5]
[1744527615275,0.3099538,593.5,593.02,3.5]
[1744527616881,0.30995255,593.49,593.02,3.5]
[1744527617176,0.30995255,593.48,593.02,3.5]
[1744527617379,0.30995255,593.5,593.02,3.5]
[1744527617578,0.30995255,593.49,593.02,3.5]
[1744527617779,0.30995255,593.48,593.02,3.5]
[1744527617974,0.30995255,593.5,593.02,3.5]
[1744527619481,0.30995255,593.51,593.02,3.5]
[1744527619681,0.30995255,593.5,593.02,3.5]
[1744527619879,0.30995255,593.51,593.02,3.5]
[1744527620076,0.33697263,593.52,593.02,3.5]
[1744527620381,0.30992074,593.51,593.02,3.5]
[1744527622781,0.33697263,593.52,593.02,3.5]
[1744527622983,0.3098919,593.51,593.02,3.5]
[1744527625082,0.33697263,593.52,593.02,3.5]
[1744527631384,0.30987166,593.51,593.02,3.5]
[1744527631789,0.30987136,593.5,593.02,3.5]
[1744527631985,0.30987136,593.51,593.02,3.5]
[1744527632193,0.30987136,593.5,593.02,3.5]
[1744527632490,0.30987136,593.49,593.02,3.5]
[1744527632790,0.30987136,593.51,593.02,3.5]
[1744527632992,0.30987136,593.5,593.02,3.5]
[1744527633191,0.30987136,593.51,593.02,3.5]
[1744527633391,0.30987136,593.49,593.02,3.5]
[1744527633592,0.33697263,593.52,593.02,3.5]
[1744527633890,0.30987291,593.51,593.02,3.5]
[1744527635592,0.33697263,593.52,593.02,3.5]
[1744527638702,0.3098736,593.51,593.02,3.5]
[1744527639100,0.33697263,593.52,593.02,3.5]
[1744527651310,0.30987609,593.51,593.02,3.5]
[1744527651511,0.33697263,593.52,593.02,3.5]
[1744527651919,0.30987519,593.51,593.02,3.5]
[1744527653214,0.33697263,593.52,593.02,3.5]
[1744527653915,0.30987555,593.51,593.02,3.5]
[1744527656220,0.33697263,593.52,593.02,3.5]
[1744527656614,0.30986753,593.51,593.02,3.5]
[1744527658514,0.29340224,593.67,593.02,3.5]
[1744527658719,0.30985473,593.66,593.02,3.5]
[1744527661020,0.29340224,593.67,593.02,3.5]
[1744527661219,0.30986439,593.66,593.02,3.5]
[1744527662023,0.30986439,593.79,593.02,3.5]
[1744527662430,0.6466838,593.79,593.02,3.5]
[1744527662681,0.33681941,593.79,593.02,3.5]
[1744527662932,0.30987151,593.78,593.02,3.5]
[1744527663129,0.60323665,593.78,593.02,3.5]
[1744527663328,0.30987151,593.77,593.02,3.5]
[1744527665019,0.30987151,593.78,593.02,3.5]
[1744527665224,0.30987151,593.77,593.02,3.5]
[1744527665423,0.30987151,593.78,593.02,3.5]
[1744527665619,0.30987151,593.76,593.02,3.5]
[1744527665825,0.33681941,593.79,593.02,3.5]
[1744527666022,0.29336638,593.75,593.02,3.5]
[1744527666225,0.30986636,593.74,593.02,3.5]
[1744527668124,0.30986636,593.78,593.02,3.5]
[1744527668327,0.30986636,593.77,593.02,3.5]
[1744527668525,0.30986636,593.78,593.02,3.5]
[1744527668724,0.30986636,593.77,593.02,3.5]
[1744527668925,0.30986636,593.76,593.02,3.5]
[1744527669124,0.29336885,593.77,593.02,3.5]
[1744527669319,0.30986636,593.76,593.02,3.5]
[1744527670722,0.29336885,593.77,593.02,3.5]
[1744527670922,0.30987261,593.76,593.02,3.5]
[1744527671122,0.30987261,593.75,593.02,3.5]
[1744527671325,0.30987261,593.78,593.02,3.5]
[1744527671521,0.30987261,593.77,593.02,3.5]
[1744527672025,0.29337009,593.76,593.02,3.5]
[1744527672225,0.30987261,593.75,593.02,3.5]
[1744527674035,0.30987261,593.77,593.02,3.5]
[1744527674230,0.30987261,593.76,593.02,3.5]
[1744527674432,0.30987261,593.75,593.02,3.5]
[1744527674634,0.30987261,593.77,593.02,3.5]
[1744527674827,0.30987261,593.76,593.02,3.5]
[1744527675030,0.30987261,593.77,593.02,3.5]
[1744527675228,0.30987261,593.75,593.02,3.5]
[1744527675430,0.30987261,593.74,593.02,3.5]
[1744527675630,0.30987261,593.75,593.02,3.5]
[1744527675832,0.30987261,593.74,593.02,3.5]
[1744527676028,0.30987261,593.75,593.02,3.5]
[1744527676228,0.30987261,593.74,593.02,3.5]
[1744527676429,0.30987261,593.73,593.02,3.5]
[1744527676631,0.30987261,593.75,593.02,3.5]
[1744527676832,0.30987261,593.74,593.02,3.5]
[1744527677034,0.30987261,593.77,593.02,3.5]
[1744527677333,0.30987261,593.76,593.02,3.5]
[1744527677535,0.30987261,593.77,593.02,3.5]
[1744527678034,0.29337009,593.76,593.02,3.5]
[1744527678235,0.30987261,593.75,593.02,3.5]
[1744527678936,0.29337009,593.76,593.02,3.5]
[1744527679131,0.30987146,593.75,593.02,3.5]
[1744527679937,0.30987146,593.77,593.02,3.5]
[1744527680537,0.33682508,593.78,593.02,3.5]
[1744527680736,0.3098698,593.77,593.02,3.5]
[1744527681036,0.60322752,593.77,593.02,3.5]
[1744527681236,0.3098698,593.76,593.02,3.5]
[1744527683039,0.60324113,593.75,593.02,3.5]
[1744527683237,0.3098698,593.74,593.02,3.5]
[1744527683837,0.29337133,593.75,593.02,3.5]
[1744527684035,0.30986956,593.74,593.02,3.5]
[1744527686034,0.30986956,593.77,593.02,3.5]
[1744527686241,0.2933738,593.73,593.02,3.5]
[1744527686440,0.30986956,593.72,593.02,3.5]
[1744527687236,0.30987276,593.71,593.02,3.5]
[1744527687539,0.30987276,593.7,593.02,3.5]
[1744527687737,0.30987276,593.72,593.02,3.5]
[1744527687942,0.30987276,593.71,593.02,3.5]
[1744527688140,0.30987276,593.72,593.02,3.5]
[1744527688341,0.30987276,593.71,593.02,3.5]
[1744527688542,0.30987276,593.72,593.02,3.5]
[1744527688740,0.30987276,593.71,593.02,3.5]
[1744527688942,0.30987276,593.7,593.02,3.5]
[1744527689242,0.30987276,593.69,593.02,3.5]
[1744527689542,0.30987276,593.68,593.02,3.5]
[1744527689838,0.30987276,593.67,593.02,3.5]
[1744527690042,0.30987276,593.7,593.02,3.5]
[1744527692040,0.29337627,593.71,593.02,3.5]
[1744527692245,0.30986591,593.7,593.02,3.5]
[1744527693748,0.29337627,593.71,593.02,3.5]
[1744527693953,0.30986591,593.7,593.02,3.5]
[1744527695051,0.30986591,593.77,593.02,3.5]
[1744527696054,0.29336762,593.76,593.02,3.5]
[1744527696254,0.30986591,593.75,593.02,3.5]
[1744527698048,0.30986591,593.77,593.02,3.5]
[1744527699150,0.29336762,593.76,593.02,3.5]
[1744527699354,0.30986591,593.75,593.02,3.5]
[1744527701058,0.30986591,593.77,593.02,3.5]
[1744527701251,0.30986591,593.76,593.02,3.5]
[1744527701454,0.30986591,593.77,593.02,3.5]
[1744527701655,0.30986591,593.76,593.02,3.5]
[1744527701851,0.30986591,593.77,593.02,3.5]
[1744527702053,0.30986591,593.76,593.02,3.5]
[1744527702256,0.29336762,593.75,593.02,3.5]
[1744527702456,0.30986591,593.74,593.02,3.5]
[1744527704057,0.30986591,593.73,593.02,3.5]
[1744527704256,0.30986591,593.77,593.02,3.5]
[1744527704453,0.30986591,593.76,593.02,3.5]
[1744527704653,0.30986591,593.77,593.02,3.5]
[1744527705159,0.29336762,593.76,593.02,3.5]
[1744527705360,0.30986524,593.75,593.02,3.5]
[1744527706863,0.33682508,593.78,593.02,3.5]
[1744527707162,0.30986454,593.77,593.02,3.5]
[1744527707363,0.29337009,593.74,593.02,3.5]
[1744527707564,0.30986454,593.73,593.02,3.5]
[1744527710064,0.30986454,593.77,593.02,3.5]
[1744527710364,0.2933602,593.72,593.02,3.5]
[1744527710561,0.30986454,593.71,593.02,3.5]
[1744527711769,0.2933602,593.72,593.02,3.5]
[1744527711970,0.30985501,593.71,593.02,3.5]
[1744527713071,0.30985501,593.77,593.02,3.5]
[1744527713271,0.30985501,593.76,593.02,3.5]
[1744527713471,0.30985501,593.77,593.02,3.5]
[1744527713673,0.30985501,593.76,593.02,3.5]
[1744527713972,0.30985501,593.75,593.02,3.5]
[1744527714173,0.29335278,593.75,593.02,3.5]
[1744527714470,0.30985501,593.74,593.02,3.5]
[1744527714773,0.29335278,593.75,593.02,3.5]
[1744527714774,0.33682508,593.78,593.02,3.5]
[1744527715778,0.30979236,593.77,593.02,3.5]
[1744527716672,0.33682508,593.78,593.02,3.5]
[1744527716876,0.30979875,593.77,593.02,3.5]
[1744527719975,0.33682508,593.78,593.02,3.5]
[1744527720177,0.30979117,593.77,593.02,3.5]
[1744527721177,0.33682508,593.78,593.02,3.5]
[1744527721370,0.30976645,593.77,593.02,3.5]
[1744527734283,0.33682508,593.78,593.02,3.5]
[1744527738483,0.33682508,593.78,593.02,2.842]
[1744527747494,0.29322424,593.96,593.02,2.842]
[1744527747695,0.30973,593.95,593.02,2.842]
[1744527749091,0.30973,594.36,593.02,2.842]
[1744527749297,0.33650772,594.34,593.02,2.842]
[1744527749597,0.30973,594.33,593.02,2.842]
[1744527749898,0.3365247,594.31,593.02,2.842]
[1744527750098,0.30973,594.3,593.02,2.842]
[1744527750297,0.64626603,594.29,593.02,2.842]
[1744527750494,0.64627169,594.28,593.02,2.842]
[1744527750699,0.64627736,594.27,593.02,2.842]
[1744527750998,0.64628302,594.26,593.02,2.842]
[1744527751194,0.64628868,594.25,593.02,2.842]
[1744527751398,0.64629435,594.24,593.02,2.842]
[1744527751594,1.28024234,594.2,593.02,2.842]
[1744527751793,0.64632267,594.19,593.02,2.842]
[1744527751996,0.64632833,594.18,593.02,2.842]
[1744527752193,0.646334,594.17,593.02,2.842]
[1744527752395,0.64633966,594.16,593.02,2.842]
[1744527752595,0.30973,594.15,593.02,2.842]
[1744527752800,0.30973,594.14,593.02,2.842]
[1744527752994,0.30973,594.13,593.02,2.842]
[1744527753198,0.64636233,594.12,593.02,2.842]
[1744527753399,0.64636799,594.11,593.02,2.842]
[1744527753601,1.28024234,594.06,593.02,2.842]
[1744527753798,0.30973,594.05,593.02,2.842]
[1744527755105,1.28024234,594.01,593.02,2.842]
[1744527755399,0.30973,594.0,593.02,2.842]
[1744527756101,0.60299007,594.0,593.02,2.842]
[1744527756304,0.30973,593.99,593.02,2.842]
[1744527759206,0.29326007,594.0,593.02,2.842]
[1744527759399,0.30972803,593.99,593.02,2.842]
[1744527761006,0.30972833,593.98,593.02,2.842]
[1744527761207,0.30972833,593.97,593.02,2.842]
[1744527761406,0.30972833,594.1,593.02,2.842]
[1744527762103,0.29323536,594.09,593.02,2.842]
[1744527762307,0.30972833,594.08,593.02,2.842]
[1744527764005,0.30972833,594.1,593.02,2.842]
[1744527764205,0.30972833,594.09,593.02,2.842]
[1744527764408,0.30972833,594.1,593.02,2.842]
[1744527764609,0.30972833,594.09,593.02,2.842]
[1744527764807,0.30972833,594.1,593.02,2.842]
[1744527765110,0.29323536,594.08,593.02,2.842]
[1744527765506,0.30972833,594.07,593.02,2.842]
[1744527767117,0.30972833,594.1,593.02,2.842]
[1744527767320,0.30972833,594.06,593.02,2.842]
[1744527767525,0.33663799,594.11,593.02,2.842]
[1744527767828,0.30968196,594.1,593.02,2.842]
[1744527770214,0.30968196,594.1,593.03,0.30232646]
[1744527770710,0.30968196,594.1,592.4,0.30232646]
[1744527770910,0.30968196,594.1,592.42,0.33759832]
[1744527771115,0.30968196,594.1,593.01,0.29329838]
[1744527771312,0.30968196,594.1,593.02,0.30232646]
[1744527771522,0.30968196,594.1,592.43,0.30232646]
[1744527771815,0.30968196,594.1,592.45,0.33758123]
[1744527772012,0.30968196,594.1,592.62,1.06013757]
[1744527772214,0.30968196,594.1,592.64,0.337473]
[1744527772516,0.62993637,594.11,592.64,0.337473]
[1744527772720,0.30968106,594.1,592.65,0.3023206]
[1744527772914,0.30968106,594.1,592.67,0.33745591]
[1744527773112,0.30968106,594.1,592.68,0.3023206]
[1744527773315,0.30968106,594.1,592.7,0.33743883]
[1744527773615,0.30968106,594.1,592.71,0.3023206]
[1744527773813,0.30968106,594.1,592.73,0.33742176]
[1744527774013,0.30968106,594.1,592.74,0.3023206]
[1744527774213,0.30968106,594.1,592.76,0.33740468]
[1744527774416,0.30968106,594.1,592.77,0.3023206]
[1744527774616,0.30968106,594.1,592.79,0.3373876]
[1744527774819,0.30968106,594.1,592.8,0.3023206]
[1744527775012,0.30968106,594.1,592.81,0.33737622]
[1744527775216,0.30968106,594.1,592.82,0.3023206]
[1744527775413,0.30968106,594.1,592.83,0.33736484]
[1744527775619,0.30968106,594.1,592.84,0.3023206]
[1744527775819,0.30968106,594.1,592.85,0.33735346]
[1744527776013,0.309681,594.09,592.86,0.30232372]
[1744527776216,0.309681,594.1,592.87,0.33734208]
[1744527776415,0.309681,594.1,592.88,0.30232372]
[1744527776618,0.309681,594.1,592.89,0.3373307]
[1744527776815,0.309681,594.1,592.9,0.30232372]
[1744527777015,0.309681,594.1,592.91,0.33731932]
[1744527777215,0.309681,594.1,592.92,0.30232372]
[1744527777418,0.309681,594.1,592.93,0.33730794]
[1744527777621,0.309681,594.1,592.94,0.30232372]
[1744527777921,0.309681,594.1,592.95,0.33729656]
[1744527778115,0.309681,594.1,592.96,0.30232372]
[1744527778522,0.309681,594.1,592.97,0.33728519]
[1744527778722,0.309681,594.1,592.98,0.30232372]
[1744527778920,0.309681,594.1,592.99,0.33727381]
[1744527779121,0.309681,594.1,593.0,0.30232372]
[1744527779319,0.33663799,594.11,592.99,0.33727381]
[1744527779522,0.30968024,594.1,593.0,0.30243386]
[1744527780021,0.30968024,594.1,592.99,0.33727381]
[1744527780623,0.30968024,594.1,593.0,0.30242372]
[1744527782022,0.33663799,594.11,592.99,0.33727381]
[1744527782257,0.33663799,594.11,593.0,0.30243335]
[1744527782258,0.30967346,594.1,593.0,0.30243335]
[1744527782457,0.30967346,594.1,592.99,0.33727381]
[1744527782664,0.30967346,594.1,593.0,0.3023959]
[1744527783651,0.30967346,594.1,592.99,0.33727381]
[1744527783847,0.30967346,594.1,593.01,0.33726244]
[1744527787141,0.33663799,594.11,593.01,0.33726244]
[1744527787332,0.30962767,594.1,593.01,0.33726244]
[1744527788338,0.30962767,594.1,593.02,0.30238899]
[1744527788538,0.30962767,594.1,593.02,0.63964574]
[1744527788740,0.30962767,594.1,593.03,0.33725106]
[1744527789434,0.30962767,594.1,593.03,1.00725106]
[1744527792240,0.33663799,594.11,593.03,1.00725106]
[1744527792441,0.30963021,594.1,593.03,1.00725106]
[1744527793543,0.30963021,594.1,593.04,0.30241588]
[1744527793742,0.30963021,594.1,593.04,0.63966125]
[1744527793949,0.33663799,594.11,593.04,0.33724537]
[1744527794143,0.30964937,594.1,593.05,0.30244676]
[1744527794840,0.33663799,594.11,593.05,0.30244676]
[1744527795145,0.30964968,594.1,593.06,0.30244864]
[1744527795340,0.30964968,594.1,593.05,0.30244864]
[1744527795545,0.30964968,594.1,593.07,0.30244864]
[1744527795745,0.30964968,594.09,593.08,0.30245501]
[1744527795945,0.30964968,594.1,593.08,0.595]
[1744527796142,0.30964968,594.09,593.08,0.595]
[1744527796347,0.30964968,594.1,593.08,0.595]
[1744527796544,0.30964968,594.08,593.08,0.595]
[1744527796842,0.30964968,594.07,593.08,0.595]
[1744527797047,0.30964968,594.1,593.08,0.595]
[1744527797847,0.30964968,594.1,593.09,0.30247759]
[1744527800647,0.30964968,594.1,593.1,0.805]
[1744527800847,0.30964968,594.1,593.11,0.30247759]
[1744527808762,0.33663799,594.11,593.1,0.805]
[1744527808957,0.30963899,594.1,593.11,0.30228789]
[1744527810464,0.33663799,594.11,593.1,0.805]
[1744527810659,0.30963954,594.1,593.11,0.30229203]
[1744527812067,0.30963954,594.1,593.12,0.563]
[1744527812365,0.30963954,594.1,593.13,0.30229203]
[1744527815267,0.33663799,594.11,593.12,0.563]
[1744527815566,0.30963788,594.1,593.13,0.30227796]
[1744527816462,0.30963788,594.1,593.14,0.639]
[1744527816970,0.33663799,594.11,593.14,0.639]
[1744527817170,0.30963802,594.1,593.14,0.639]
[1744527820266,0.33663799,594.11,593.14,0.639]
[1744527820468,0.30963511,594.1,593.14,0.639]
[1744527821971,0.3096346,594.09,593.14,0.639]
[1744527822270,0.3096346,594.08,593.14,0.639]